bitfinex-derivatives/quotes_SOLF0:USTF0_20240904
["timestamp","ask_amount","ask_price","bid_price","bid_amount"]
[1725480396682,0.05503662,133.19,133.18,3.7545]
[1725480411897,9.28503662,133.19,133.17,0.05630103]
[1725480412395,13.03933662,133.19,133.17,0.05630103]
[1725480413692,13.03933662,133.19,133.17,3.81100103]
[1725480414403,0.05503662,133.19,133.18,3.7545]
[1725480414602,0.05503662,133.19,133.17,0.05630103]
[1725480415004,0.05503662,133.19,133.17,3.81090103]
[1725480416005,3.80923662,133.19,133.17,3.81090103]
[1725480417998,3.80923662,133.19,133.17,0.05630103]
[1725480418794,0.05503662,133.19,133.17,3.81080103]
[1725480418999,0.05503662,133.19,133.17,0.05630103]
[1725480419807,0.05503662,133.19,133.18,3.7545]
[1725480428307,9.23,133.25,133.22,3.7533]
[1725480428508,235.5025,133.3,133.22,9.23]
[1725480428509,12.94482864,133.28,133.22,9.23]
[1725480428705,12.94482864,133.28,133.2,3.71555155]
[1725480428706,3.71482864,133.28,133.23,9.23]
[1725480428902,3.83269505,133.3,133.24,9.23]
[1725480429103,9.23,133.31,133.24,9.23]
[1725480429308,0.04899132,133.29,133.26,0.05000767]
[1725480430012,0.04899132,133.29,133.27,3.7519]
[1725480433118,0.04899132,133.29,133.26,3.80210767]
[1725480433711,3.7517,133.28,133.26,0.05000767]
[1725480434421,3.80049132,133.29,133.26,0.05000767]
[1725480435319,3.7517,133.28,133.26,0.05000767]
[1725480437623,3.80049132,133.29,133.26,0.05000767]
[1725480438319,3.80059132,133.29,133.26,3.80210767]
[1725480438521,0.04899132,133.29,133.26,3.80210767]
[1725480439220,3.7518,133.28,133.26,3.80210767]
[1725480439424,3.7518,133.28,133.26,0.05000767]
[1725480440522,0.04899132,133.29,133.26,0.05000767]
[1725480440731,23.05,133.28,133.26,0.05000767]
[1725480440929,3.7519,133.27,133.26,0.05000767]
[1725480441831,3.7519,133.27,133.22,3.7531]
[1725480441832,3.7525,133.25,133.22,3.7531]
[1725480442329,24.5024,133.27,133.17,23.05]
[1725480442628,3.7527,133.25,133.17,23.05]
[1725480442820,0.05470335,133.23,133.2,0.05734106]
[1725480443021,0.05470335,133.23,133.22,3.7532]
[1725480463847,1.3564,133.31,133.22,9.22]
[1725480464046,1.4173,133.32,133.27,9.22]
[1725480464249,1.4118,133.35,133.3,9.22]
[1725480464547,3.7501,133.34,133.28,9.22]
[1725480464953,0.05461396,133.32,133.31,3.7507]
[1725480465648,0.05461396,133.32,133.3,3.80047455]
[1725480467055,7.57810021,133.32,133.3,0.04957455]
[1725480467257,9.22,133.31,133.3,0.04957455]
[1725480467855,9.22,133.31,133.16,226.0]
[1725480468155,9.22,133.27,133.2,13.14361995]
[1725480468452,9.22,133.27,133.25,3.7523]
[1725480468853,12.9718,133.28,133.25,3.80098611]
[1725480469057,0.04986497,133.27,133.26,3.7521]
[1725480478355,1.3265,133.33,133.3,3.7508]
[1725480478356,5.0769,133.33,133.3,3.7508]
[1725480478571,5.0769,133.33,133.26,3.73095467]
[1725480478757,5.0769,133.33,133.25,23.04]
[1725480479152,1.3265,133.33,133.27,23.04]
[1725480479361,0.05374542,133.31,133.29,0.04865051]
[1725480479555,0.05374542,133.31,133.3,3.751]
[1725480489775,0.05374542,133.31,133.29,0.04865051]
[1725480490076,0.05374542,133.31,133.3,3.7511]
[1725480496676,0.05374542,133.31,133.29,0.04865051]
[1725480497178,0.05374542,133.31,133.3,3.7511]
[1725480498886,0.05374542,133.31,133.3,26.7911]
[1725480499581,3.7492,133.37,133.34,3.7498]
[1725480500579,3.79938624,133.37,133.34,3.80318177]
[1725480504678,3.7494,133.36,133.34,3.80318177]
[1725480504974,0.05018624,133.37,133.35,3.7497]
[1725480505176,0.05018624,133.37,133.34,0.05338177]
[1725480505574,0.05018624,133.37,133.36,3.7494]
[1725480507481,9.27018624,133.37,133.34,0.05338177]
[1725480507681,9.22,133.35,133.34,0.05338177]
[1725480507983,0.05018624,133.37,133.34,0.05338177]
[1725480508172,9.22,133.36,133.34,0.05338177]
[1725480508573,12.9695,133.36,133.34,0.05338177]
[1725480511285,3.7497,133.35,133.34,0.05338177]
[1725480511582,12.9697,133.35,133.34,0.05338177]
[1725480513483,3.7497,133.35,133.34,0.05338177]
[1725480517199,9.22,133.36,133.19,229.7169833]
[1725480517388,9.22,133.33,133.25,10.6694]
[1725480517690,3.7509,133.31,133.28,3.7515]
[1725480518087,3.80011006,133.31,133.29,3.7513]
[1725480518586,9.26921006,133.31,133.28,0.04788544]
[1725480518793,9.22,133.3,133.28,0.04788544]
[1725480519089,3.7514,133.29,133.28,0.04788544]
[1725480521996,3.7513,133.3,133.28,0.04788544]
[1725480522196,0.04921006,133.31,133.28,0.04788544]
[1725480522491,0.04921006,133.31,133.28,3.79938544]
[1725480523191,3.80021006,133.31,133.28,3.79938544]
[1725480523491,3.80021006,133.31,133.29,3.7513]
[1725480526096,3.80021006,133.31,133.28,3.79938544]
[1725480526896,3.7512,133.3,133.28,3.79938544]
[1725480528395,3.7514,133.29,133.28,0.04788544]
[1725480530288,0.04921006,133.31,133.28,3.79948544]
[1725480530498,0.04921006,133.31,133.28,0.04788544]
[1725480531591,0.04921006,133.31,133.3,3.7511]
[1725480543295,23.11921006,133.31,133.28,0.04788544]
[1725480544203,3.7514,133.29,133.28,0.04788544]
[1725480545999,12.9714,133.29,133.28,0.04788544]
[1725480549004,1.4092,133.3,133.28,0.04788544]
[1725480549309,0.04921006,133.31,133.28,0.04788544]
[1725480549507,0.04921006,133.31,133.29,3.7512]
[1725480549706,0.04921006,133.31,133.28,9.26788544]
[1725480550011,0.04921006,133.31,133.3,3.7511]
[1725480555116,1.3194,133.37,133.34,3.7498]
[1725480555611,3.7494,133.36,133.33,3.7501]
[1725480555902,1.3194,133.37,133.3,23.06]
[1725480556113,3.7497,133.35,133.28,24.4388]
[1725480556300,0.04859223,133.33,133.32,3.7503]
[1725480571522,1.313,133.38,133.32,23.06]
[1725480571824,5.062,133.38,133.33,3.74184354]
[1725480572120,3.749,133.38,133.36,3.7493]
[1725480572313,9.22,133.41,133.34,9.22]
[1725480572520,0.02341884,133.39,133.36,0.04978324]
[1725480573027,0.02341884,133.39,133.37,3.749]
[1725480573028,3.77201884,133.39,133.37,3.749]
[1725480573223,0.02341884,133.39,133.36,0.04978324]
[1725480573731,0.02341884,133.39,133.37,3.7489]
[1725480574725,0.02341884,133.39,133.38,3.7488]
[1725480589347,7.505,133.5,133.42,3.7477]
[1725480589554,9.22,133.47,133.42,3.7477]
[1725480589757,3.7471,133.45,133.42,3.7477]
[1725480590054,3.81411217,133.46,133.42,3.7477]
[1725480590245,4.2074,133.49,133.43,3.7472]
[1725480590445,3.77774445,133.48,133.45,0.05399061]
[1725480590642,13.4274,133.49,133.45,0.05399061]
[1725480590843,3.7462,133.48,133.45,0.05399061]
[1725480591251,3.7462,133.48,133.45,3.80069061]
[1725480592055,1.4093,133.49,133.46,9.22]
[1725480592248,2.7278,133.53,133.47,9.22]
[1725480592450,2.7278,133.53,133.5,3.7454]
[1725480592759,6.4726,133.53,133.5,3.79825344]
[1725480592949,2.7278,133.53,133.5,3.79825344]
[1725480593152,3.7445,133.54,133.5,0.05285344]
[1725480593355,10.571,133.57,133.5,0.05285344]
[1725480593560,10.571,133.57,133.52,0.04762125]
[1725480594062,9.22,133.55,133.52,0.04762125]
[1725480594954,9.22,133.54,133.52,0.04762125]
[1725480595149,12.9645,133.54,133.52,0.04762125]
[1725480595854,12.9642,133.55,133.52,0.04762125]
[1725480596252,3.7445,133.54,133.52,0.04762125]
[1725480598557,3.7446,133.53,133.52,0.04762125]
[1725480601759,2.7278,133.56,133.52,0.04762125]
[1725480601964,11.9478,133.56,133.52,0.04762125]
[1725480602460,11.9478,133.56,133.52,3.79252125]
[1725480602461,3.7444,133.54,133.52,3.79252125]
[1725480603262,3.7446,133.53,133.52,0.04762125]
[1725480604863,7.53074232,133.53,133.52,0.04762125]
[1725480605463,3.7446,133.53,133.52,0.04762125]
[1725480606061,7.50593197,133.53,133.52,0.04762125]
[1725480606563,3.7445,133.54,133.52,0.04762125]
[1725480607661,3.7446,133.53,133.52,0.04762125]
[1725480609365,9.22,133.55,133.52,0.04762125]
[1725480609870,9.22,133.53,133.4,7.4964]
[1725480610166,10.6275,133.52,133.45,9.22]
[1725480610375,3.7456,133.5,133.47,3.7461]
[1725480611069,3.79322125,133.5,133.47,3.7960417]
[1725480611470,3.79322125,133.5,133.47,0.0499417]
[1725480611667,3.7458,133.49,133.47,0.0499417]
[1725480611977,9.22,133.49,133.47,0.0499417]
[1725480612163,3.7469,133.45,133.37,4.1883]
[1725480612361,3.7469,133.45,133.41,9.22]
[1725480612776,3.7469,133.45,133.42,3.7475]
[1725480612973,3.7469,133.45,133.41,9.22]
[1725480613168,0.05441758,133.44,133.42,0.05753427]
[1725480613369,0.05441758,133.44,133.42,3.80503427]
[1725480613980,0.05441758,133.44,133.42,0.05753427]
[1725480614371,0.05441758,133.44,133.43,3.7474]
[1725480614673,0.05441758,133.44,133.42,0.05753427]
[1725480616271,0.05441758,133.44,133.42,3.80513427]
[1725480616674,0.05441758,133.44,133.42,0.05753427]
[1725480618571,3.80161758,133.44,133.42,0.05753427]
[1725480619672,3.7474,133.43,133.42,0.05753427]
[1725480624469,3.81659716,133.44,133.42,0.05753427]
[1725480624974,7.56399716,133.44,133.42,0.05753427]
[1725480625172,0.05441758,133.44,133.42,0.05753427]
[1725480626179,3.80171758,133.44,133.42,0.05753427]
[1725480627578,3.7474,133.43,133.42,0.05753427]
[1725480630080,3.7474,133.43,133.35,2.6397]
[1725480630081,3.7483,133.4,133.34,26.81284482]
[1725480630281,3.7483,133.4,133.38,3.7487]
[1725480630482,2.871,133.43,133.38,3.7487]
[1725480630483,3.7481,133.41,133.38,3.7487]
[1725480630976,3.79610394,133.41,133.38,3.80486877]
[1725480632278,3.79610394,133.41,133.39,3.7485]
[1725480632977,0.04800394,133.41,133.39,3.7485]
[1725480633174,0.04800394,133.41,133.38,0.05616877]
[1725480633782,0.04800394,133.41,133.4,3.7483]
[1725480635581,3.79600394,133.41,133.39,3.7484]
[1725480635783,0.04800394,133.41,133.39,3.7484]
[1725480643780,3.79600394,133.41,133.39,3.7484]
[1725480643981,0.04800394,133.41,133.4,12.9583]
[1725480645589,0.04800394,133.41,133.4,3.7483]
[1725480647087,0.04800394,133.41,133.38,0.05616877]
[1725480647293,9.21,133.39,133.38,0.05616877]
[1725480647694,12.9585,133.39,133.38,0.05616877]
[1725480647889,3.7485,133.39,133.38,0.05616877]
[1725480648695,3.7485,133.39,133.35,3.7495]
[1725480648696,3.7495,133.36,133.31,109.80405619]
[1725480648894,23.05,133.37,133.31,109.80405619]
[1725480649093,26.74902548,133.37,133.31,109.80405619]
[1725480649295,3.7496,133.36,133.32,3.7503]
[1725480649789,0.05089116,133.35,133.33,0.05410731]
[1725480650495,0.05089116,133.35,133.33,3.80430731]
[1725480657394,0.05089116,133.35,133.34,3.7499]
[1725480659704,3.67156458,133.44,133.33,23.10410731]
[1725480660000,23.05,133.43,133.35,23.05]
[1725480660195,3.7477,133.42,133.36,3.70189783]
[1725480660596,0.04906012,133.4,133.38,0.05674083]
[1725480660908,0.04906012,133.4,133.39,3.7484]
[1725480663002,0.04906012,133.4,133.38,3.80544083]
[1725480663902,0.04906012,133.4,133.38,0.05674083]
[1725480664099,3.79746012,133.4,133.38,0.05674083]
[1725480664294,0.04906012,133.4,133.38,0.05674083]
[1725480665602,2.7636,133.46,133.38,0.05674083]
[1725480665901,2.7636,133.46,133.38,23.10674083]
[1725480666107,3.7472,133.44,133.41,3.7478]
[1725480666301,3.7472,133.44,133.38,23.10674083]
[1725480666302,2.7636,133.46,133.38,23.05]
[1725480666801,0.05629308,133.43,133.41,3.80393575]
[1725480667601,3.80389308,133.43,133.41,0.05623575]
[1725480669404,3.80389308,133.43,133.41,3.80423575]
[1725480669904,0.05629308,133.43,133.42,3.7477]
[1725480670505,0.05629308,133.43,133.41,0.05623575]
[1725480670506,3.7462,133.48,133.45,3.7468]
[1725480670903,24.4995,133.5,133.45,3.7468]
[1725480671715,0.05174858,133.49,133.46,0.04922502]
[1725480672316,3.7464,133.47,133.46,0.04922502]
[1725480674317,23.05,133.46,133.38,23.05]
[1725480674511,23.05,133.46,133.42,3.7476]
[1725480674716,3.7475,133.43,133.37,2.7996]
[1725480675221,23.05,133.44,133.41,3.7478]
[1725480675520,26.84590347,133.44,133.41,3.7478]
[1725480676818,26.84590347,133.44,133.42,3.7476]
[1725480677819,26.84590347,133.44,133.39,0.05516416]
[1725480678026,3.7475,133.43,133.41,3.7479]
[1725480680020,26.79200676,133.44,133.4,3.7482]
[1725480680229,23.09860347,133.44,133.39,0.05516416]
[1725480680927,26.84590347,133.44,133.41,3.7478]
[1725480681622,3.7475,133.43,133.41,3.7478]
[1725480684536,23.05,133.42,133.39,0.05516416]
[1725480684731,23.05,133.41,133.39,0.05516416]
[1725480684925,3.7483,133.4,133.39,0.05516416]
[1725480688333,1.4463,133.4,133.32,24.4893]
[1725480688635,23.05,133.39,133.3,24.3642]
[1725480688836,3.7492,133.37,133.31,3.90888037]
[1725480689023,3.7492,133.37,133.3,24.3642]
[1725480689225,0.0572968,133.35,133.32,0.05757294]
[1725480689427,0.0572968,133.35,133.34,3.7499]
[1725480696037,9.2772968,133.35,133.21,7.5069]
[1725480696237,9.22,133.31,133.24,9.22]
[1725480696445,9.22,133.31,133.25,3.9095007]
[1725480696649,9.22,133.31,133.28,3.7516]
[1725480696934,9.22,133.36,133.29,9.22]
[1725480697141,0.05169368,133.34,133.31,0.05006452]
[1725480697537,0.05169368,133.34,133.31,3.76397168]
[1725480697838,0.05169368,133.34,133.32,3.7504]
[1725480698739,0.05169368,133.34,133.31,3.76397168]
[1725480698740,0.05169368,133.34,133.33,3.7502]
[1725480705738,0.05169368,133.34,133.32,3.7503]
[1725480707546,0.05169368,133.34,133.33,3.7502]
[1725480713453,0.05169368,133.34,133.32,3.7504]
[1725480715585,0.05169368,133.34,133.33,3.7502]
[1725480724266,9.27169368,133.34,133.31,0.05006452]
[1725480725165,13.02179368,133.34,133.31,3.80076452]
[1725480725769,3.7503,133.33,133.31,3.80076452]
[1725480725971,9.27169368,133.34,133.31,3.80076452]
[1725480726570,13.02179368,133.34,133.31,3.80076452]
[1725480727474,3.7503,133.33,133.31,0.05006452]
[1725480728475,3.7503,133.33,133.31,3.80086452]
[1725480728667,12.9705,133.32,133.31,0.05006452]
[1725480731982,16.75013963,133.32,133.31,0.05006452]
[1725480745498,3.7519,133.28,133.24,1.4166]
[1725480745694,9.22,133.27,133.24,1.4166]
[1725480745993,9.22,133.27,133.25,3.7523]
[1725480746490,9.26876856,133.27,133.25,3.80951202]
[1725480746893,0.04876856,133.27,133.26,3.7522]
[1725480748094,3.80076856,133.27,133.25,3.80951202]
[1725480749494,0.04876856,133.27,133.26,3.7522]
[1725480751893,0.04876856,133.27,133.25,3.80941202]
[1725480752994,13.02066856,133.27,133.25,0.05721202]
[1725480753699,13.02066856,133.27,133.25,3.80971202]
[1725480759693,12.9722,133.26,133.25,0.05721202]
[1725480760195,9.22,133.26,133.19,1.447]
[1725480760399,9.22,133.22,133.2,3.7539]
[1725480760811,9.22,133.22,133.17,3.7560042]
[1725480760996,12.9733,133.22,133.19,3.754]
[1725480761196,13.02488365,133.22,133.19,3.80201902]
[1725480761701,9.27158365,133.22,133.19,3.80201902]
[1725480761896,9.27158365,133.22,133.2,3.7539]
[1725480765000,13.02508365,133.22,133.19,3.80211902]
[1725480765492,9.27158365,133.22,133.2,3.7539]
[1725480767301,13.02488365,133.22,133.2,3.7539]
[1725480768909,9.22,133.21,133.2,3.7539]
[1725480769207,9.22,133.21,133.19,3.80211902]
[1725480769509,3.80488365,133.22,133.19,3.80211902]
[1725480769510,9.22,133.2,133.19,3.80211902]
[1725480769911,9.22,133.2,133.19,0.04801902]
[1725480771005,12.9739,133.2,133.19,0.04801902]
[1725480771206,9.22,133.2,133.19,0.04801902]
[1725480771711,12.9739,133.2,133.19,0.04801902]
[1725480774209,3.7546,133.18,133.16,3.7549]
[1725480774409,12.9746,133.18,133.16,3.7549]
[1725480775317,13.02767909,133.18,133.16,0.04919334]
[1725480776406,0.05307909,133.18,133.16,0.04919334]
[1725480777002,9.27307909,133.18,133.16,0.04919334]
[1725480777512,0.05307909,133.18,133.17,3.7547]
[1725480777711,9.27307909,133.18,133.17,3.7547]
[1725480784323,9.27307909,133.18,133.16,3.80409334]
[1725480787923,0.05307909,133.18,133.17,3.7547]
[1725480788115,3.77138997,133.24,133.17,9.22]
[1725480788317,9.22,133.23,133.18,9.22]
[1725480788522,2.8738,133.26,133.17,1.3746]
[1725480788523,9.22,133.22,133.17,1.3746]
[1725480789217,0.04791913,133.21,133.18,0.05607797]
[1725480789622,0.04791913,133.21,133.2,3.7537]
[1725480798628,1.3448,133.27,133.24,3.7528]
[1725480798836,9.22,133.25,133.24,3.7528]
[1725480800733,0.05239301,133.26,133.25,3.7525]
[1725480806131,9.27239301,133.26,133.24,3.7526]
[1725480808745,9.27239301,133.26,133.25,3.7525]
[1725480810343,0.05239301,133.26,133.25,3.7525]
[1725480815651,9.27239301,133.26,133.24,3.7526]
[1725480816546,9.27239301,133.26,133.23,0.04851464]
[1725480816864,9.22,133.23,133.15,2.7289]
[1725480817044,9.22,133.21,133.15,11.9489]
[1725480817350,9.22,133.21,133.16,1.50163165]
[1725480817552,9.22,133.21,133.15,11.9489]
[1725480817754,0.05430614,133.2,133.17,0.05721761]
[1725480819350,0.05430614,133.2,133.19,3.7542]
[1725480835462,0.05430614,133.2,133.18,3.7543]
[1725480836258,0.05430614,133.2,133.19,3.7542]
[1725480837160,46.15430614,133.2,133.17,0.05721761]
[1725480837357,9.22,133.18,133.17,0.05721761]
[1725480837557,12.9745,133.18,133.17,0.05721761]
[1725480837764,9.22,133.18,133.17,0.05721761]
[1725480838760,3.7544,133.19,133.17,0.05721761]
[1725480838967,12.9744,133.19,133.17,0.05721761]
[1725480840264,16.64667395,133.19,133.17,0.05721761]
[1725480841564,3.7544,133.19,133.17,0.05721761]
[1725480841764,9.22,133.18,133.17,0.05721761]
[1725480842664,3.7552,133.16,133.13,3.7558]
[1725480842864,9.22,133.15,133.13,3.7558]
[1725480843271,9.22,133.15,133.09,2.7295]
[1725480843463,9.22,133.15,133.1,1.50226085]
[1725480843669,0.05474735,133.14,133.13,3.7557]
[1725480845366,0.05474735,133.14,133.13,12.9757]
[1725480845569,10.6611,133.2,133.13,9.22]
[1725480845868,9.22,133.17,133.11,3.71901757]
[1725480846065,9.22,133.16,133.13,3.7557]
[1725480846766,9.26890079,133.16,133.13,3.81186197]
[1725480846967,13.02410079,133.16,133.13,0.05616197]
[1725480848369,13.02410079,133.16,133.13,3.81196197]
[1725480848961,13.02410079,133.16,133.13,0.05616197]
[1725480849563,13.02410079,133.16,133.13,3.81196197]
[1725480850368,9.26890079,133.16,133.13,3.81196197]
[1725480851174,9.26890079,133.16,133.14,3.7556]
[1725480853872,13.02400079,133.16,133.13,0.05616197]
[1725480854268,9.22,133.14,133.13,0.05616197]
[1725480855280,9.22,133.14,133.13,3.81206197]
[1725480856771,9.22,133.14,133.13,0.05616197]
[1725480857679,12.9756,133.14,133.13,0.05616197]
[1725480857878,12.9756,133.14,133.11,3.7563]
[1725480858077,9.22,133.12,133.11,3.7563]
[1725480858975,9.22,133.12,133.1,3.80434773]
[1725480863584,9.22,133.12,133.11,3.7564]
[1725480867483,0.05628023,133.13,133.12,3.7561]
[1725480867782,9.27628023,133.13,133.12,3.7561]
[1725480869185,9.27628023,133.13,133.11,3.7563]
[1725480869383,9.22,133.12,133.11,3.7563]
[1725480870081,12.9761,133.12,133.1,3.80434773]
[1725480870284,12.9761,133.12,133.05,2.7018]
[1725480870285,9.22,133.12,133.05,2.7018]
[1725480870583,9.22,133.07,133.01,11.2771]
[1725480870790,9.22,133.07,133.06,3.7577]
[1725480872785,0.04808689,133.08,133.07,3.7576]
[1725480872991,9.26808689,133.08,133.07,3.7576]
[1725480873390,9.26808689,133.08,133.06,3.7576]
[1725480873586,9.26808689,133.08,133.05,0.05483914]
[1725480873986,9.26808689,133.08,133.06,3.7578]
[1725480874687,9.22,133.07,133.06,3.7578]
[1725480879790,9.26808689,133.08,133.07,3.7576]
[1725480880098,0.04808689,133.08,133.07,3.7576]
[1725480897506,9.26808689,133.08,133.07,3.7576]
[1725480897695,9.26808689,133.08,133.06,3.7577]
[1725480900106,9.22,133.07,133.05,3.81283914]
[1725480900513,0.04808689,133.08,133.05,3.81283914]
[1725480900807,9.22,133.06,133.05,3.81283914]
[1725480901910,0.04808689,133.08,133.06,3.7576]
[1725480902110,9.26808689,133.08,133.06,3.7576]
[1725480902311,9.26808689,133.08,133.05,0.05483914]
[1725480903513,9.26808689,133.08,133.07,3.7576]
[1725480905919,0.04808689,133.08,133.07,3.7576]
[1725480911820,9.22,133.13,133.06,9.22]
[1725480912113,9.22,133.13,133.07,1.50277813]
[1725480912305,9.22,133.13,133.08,3.76117866]
[1725480912505,9.22,133.13,133.06,9.22]
[1725480912914,0.05585661,133.11,133.08,0.0516298]
[1725480913115,0.05585661,133.11,133.08,3.80266241]
[1725480913918,0.05585661,133.11,133.1,3.7567]
[1725480918824,0.05585661,133.11,133.1,5.25918884]
[1725480919016,10.5532,133.16,133.14,3.7553]
[1725480920121,10.6045601,133.16,133.14,3.808562]
[1725480920424,46.1,133.15,133.05,3.78906249]
[1725480920623,9.22,133.11,133.05,3.78906249]
[1725480920829,9.22,133.09,133.07,3.7574]
[1725480921020,9.22,133.09,133.04,3.70491433]
[1725480921325,0.05408046,133.08,133.06,3.7577]
[1725480923513,9.27408046,133.08,133.06,3.7577]
[1725480923916,0.05408046,133.08,133.06,3.7577]
[1725480925325,0.05408046,133.08,133.07,3.7576]
[1725480931332,0.05408046,133.08,133.07,5.26061638]
[1725480931524,0.05408046,133.08,133.07,3.7576]
[1725480931926,0.05408046,133.08,133.07,5.26061299]
[1725480932126,1.417,133.13,133.1,3.7565]
[1725480932423,1.417,133.13,133.08,9.22]
[1725480932620,1.417,133.13,133.11,3.7562]
[1725480933030,1.47264563,133.13,133.11,3.80379845]
[1725480933524,1.47264563,133.13,133.12,3.7561]
[1725480933733,1.47264563,133.13,133.11,0.04759845]
[1725480934233,1.47264563,133.13,133.11,3.80379845]
[1725480934527,0.05564563,133.13,133.11,3.80379845]
[1725480935132,9.22,133.12,133.11,0.04759845]
[1725480936030,9.22,133.12,133.05,1.50305841]
[1725480936330,9.22,133.1,133.07,3.7573]
[1725480937238,9.26891909,133.1,133.07,3.81187155]
[1725480949133,13.02571909,133.1,133.07,0.05457155]
[1725480951947,3.757,133.09,133.07,0.05457155]
[1725480955444,13.02571909,133.1,133.07,3.81207155]
[1725480956050,0.04891909,133.1,133.07,0.05457155]
[1725480956250,0.04891909,133.1,133.07,9.27457155]
[1725480956748,0.04891909,133.1,133.08,1.50289023]
[1725480957145,0.04891909,133.1,133.07,9.27457155]
[1725480957346,0.04891909,133.1,133.09,3.757]
[1725480961156,0.04891909,133.1,133.07,0.05457155]
[1725480961449,9.22,133.09,133.07,0.05457155]
[1725480961641,0.04891909,133.1,133.07,0.05457155]
[1725480961642,9.22,133.08,133.07,0.05457155]
[1725480963848,12.9773,133.08,133.07,0.05457155]
[1725480968845,3.758,133.06,132.99,104.62209396]
[1725480969048,12.978,133.06,132.99,104.62209396]
[1725480969253,12.978,133.06,133.0,1.5035185]
[1725480969452,9.22,133.04,133.03,3.7586]
[1725480971062,9.22,133.04,133.02,3.80716074]
[1725480972863,9.22,133.03,133.02,0.04836074]
[1725480974568,13.0250669,133.03,132.95,3.71786197]
[1725480974771,13.0250669,133.03,132.96,1.50400414]
[1725480974772,9.22,132.99,132.96,1.50400414]
[1725480975063,9.22,132.99,132.97,3.7602]
[1725480975454,9.2698322,132.99,132.97,0.05437263]
[1725480975658,0.0498322,132.99,132.97,0.05437263]
[1725480977468,0.0498322,132.99,132.97,3.81477263]
[1725480977866,0.0498322,132.99,132.97,0.05437263]
[1725480978270,0.0498322,132.99,132.97,3.81467263]
[1725480979063,9.2698322,132.99,132.97,3.81467263]
[1725480979271,9.2698322,132.99,132.97,0.05437263]
[1725480979865,0.0498322,132.99,132.97,3.81477263]
[1725480981265,0.0498322,132.99,132.98,3.7601]
[1725480982065,0.0498322,132.99,132.98,12.9801]
[1725480982677,0.0498322,132.99,132.98,14.48369904]
[1725480985479,0.0498322,132.99,132.98,5.26369904]
[1725480985679,0.0498322,132.99,132.98,3.7601]
[1725480986569,0.0498322,132.99,132.98,5.26373434]
[1725480987581,0.0498322,132.99,132.98,3.7601]
[1725480989276,0.0498322,132.99,132.98,5.26378086]
[1725480990372,0.0498322,132.99,132.98,3.7601]
[1725480990773,0.0498322,132.99,132.98,1.50371837]
[1725480990978,9.2698322,132.99,132.98,1.50371837]
[1725480991177,9.2698322,132.99,132.97,0.05437263]
[1725480991381,0.0498322,132.99,132.97,0.05437263]
[1725480992077,0.0498322,132.99,132.98,3.7601]
[1725481003987,9.2698322,132.99,132.97,3.81467263]
[1725481005892,9.2698322,132.99,132.97,0.05437263]
[1725481008594,13.0298322,132.99,132.97,0.05437263]
[1725481010093,9.22,132.98,132.97,0.05437263]
[1725481012895,9.2698322,132.99,132.97,3.81477263]
[1725481014094,9.2698322,132.99,132.97,0.05437263]
[1725481020798,0.0498322,132.99,132.97,0.05437263]
[1725481021094,0.0498322,132.99,132.98,9.22]
[1725481021298,0.0498322,132.99,132.98,14.48382721]
[1725481021897,10.6112,133.05,132.98,10.72352594]
[1725481022089,9.22,133.05,132.99,10.72352594]
[1725481022292,9.22,133.05,133.0,5.27401774]
[1725481022497,9.22,133.05,133.03,3.7586]
[1725481023198,9.27481607,133.05,133.03,3.8063457]
[1725481023797,0.05481607,133.05,133.04,3.7584]
[1725481026298,9.27481607,133.05,133.03,0.0477457]
[1725481026499,9.22,133.04,133.03,0.0477457]
[1725481027797,9.27481607,133.05,133.03,0.0477457]
[1725481028208,13.03301607,133.05,133.03,0.0477457]
[1725481028507,9.22,133.04,133.03,0.0477457]
[1725481028709,10.5612,133.04,133.03,0.0477457]
[1725481029201,14.3196,133.04,133.03,0.0477457]
[1725481030408,14.3196,133.04,132.96,9.22]
[1725481030409,3.7588,133.03,132.96,9.22]
[1725481030614,9.22,133.02,132.96,9.22]
[1725481030808,9.22,133.02,132.97,1.50381399]
[1725481031008,9.22,133.02,132.98,1.50381399]
[1725481031211,9.22,133.02,132.96,9.22]
[1725481031414,0.05405783,133.0,132.99,3.7597]